[Event "III Menorca Open-A 2024"]
[Site "Ciutadella Menorca"]
[Date "2024.04.03"]
[Round "2.23"]
[White "Setien Solar, Enrique"]
[Black "Prado, Alexandra"]
[Result "0-1"]
[ECO "B35"]
[WhiteElo "2055"]
[BlackElo "1877"]
[Annotator "RC"]
[PlyCount "58"]
[EventDate "2024.04.02"]
[EventType "swiss"]
[EventCountry "ESP"]
[SourceTitle "playchess.com"]
[Source "ChessBase"]
[SourceQuality "1"]
[TimeControl "5400+30"]

1. e4 {[%emt 0:00:04]} c5 {[%emt 0:01:10]} 2. Nf3 {[%emt 0:00:31]} g6 {[%emt 0:00:20]} 3. d4 {[%emt 0:01:05]} cxd4 {[%emt 0:00:10]} 4. Nxd4 {[%emt 0:00:17]} Bg7 {[%emt 0:02:08]} 5. Be3 {[%emt 0:02:57]} Nf6 {[%emt 0:02:01]} 6. Nc3 {[%emt 0:00:22]} Nc6 {[%emt 0:00:17]} 7. Bc4 {[%emt 0:02:19]} O-O {[%emt 0:00:15]} 8. f3 {[%emt 0:00:37]} Qb6 {[%emt 0:04:20]} 9. Bb3 {[%emt 0:05:50]} Nxe4 {[%emt 0:01:21]} 10. Nf5 {[%emt 0:16:41]} Nxc3 {[%emt 0:16:28]} 11. Bxb6 {[%emt 1:05:17]} Nxd1 {[%emt 1:07:30]} 12. Rxd1 {[%emt 0:00:00]} gxf5 {[%emt 0:00:00]} 13. Be3 {[%emt 0:01:00]} Bxb2 {[%emt 0:01:00]} 14. Kf2 {[%emt 0:00:00]} d6 {[%emt 0:00:00]} 15. Rhe1 {[%emt 0:00:00]} Bg7 {[%emt 0:00:00]} 16. g3 {[%emt 0:00:00]} Be6 {[%emt 0:00:00]} 17. c4 {[%emt 0:00:00]} Na5 {[%emt 0:00:00]} 18. Bd4 {[%emt 0:00:00]} Nxb3 {[%emt 0:00:00]} 19. axb3 {[%emt 0:03:00]} Bxd4+ {[%emt 0:03:00]} 20. Rxd4 {[%emt 0:00:00]} Rfc8 {[%emt 0:00:00]} 21. Re3 {[%emt 0:00:00]} Rab8 {[%emt 0:00:00]} 22. g4 {[%emt 0:00:00]} fxg4 {[%emt 0:00:00]} 23. fxg4 {[%emt 0:00:00]} b5 {[%emt 0:00:00]} 24. cxb5 {[%emt 0:02:30]} Rxb5 {[%emt 0:02:30]} 25. b4 {[%emt 0:00:00]} Rc2+ {[%emt 0:00:00]} 26. Kg3 {[%emt 0:00:00]} Kf8 {[%emt 0:00:00]} 27. h3 {[%emt 0:01:30]} Rb2 {[%emt 0:01:30]} 28. Ra3 {[%emt 0:00:30]} Rb3+ {[%emt 0:00:30]} 29. Rxb3 {[%emt 0:00:00]} Bxb3 {[%emt 0:00:00]} 0-1

[Event "III Menorca Open-A 2024"]
[Site "Ciutadella Menorca"]
[Date "2024.04.03"]
[Round "2.24"]
[White "Berger, Lars"]
[Black "Saine, Zachary"]
[Result "0-1"]
[ECO "C54"]
[WhiteElo "1772"]
[BlackElo "2010"]
[Annotator "RC"]
[PlyCount "52"]
[EventDate "2024.04.02"]
[EventType "swiss"]
[EventCountry "ESP"]
[SourceTitle "playchess.com"]
[Source "ChessBase"]
[SourceQuality "1"]
[TimeControl "5400+30"]

1. e4 {[%emt 0:00:05]} e5 {[%emt 0:00:08]} 2. Nf3 {[%emt 0:00:10]} Nc6 {[%emt 0:00:08]} 3. Bc4 {[%emt 0:00:07]} Bc5 {[%emt 0:00:08]} 4. O-O {[%emt 0:00:33]} d6 {[%emt 0:02:27]} 5. c3 {[%emt 0:02:36]} Bg4 {[%emt 0:03:04]} 6. h3 {[%emt 0:04:37]} Bh5 {[%emt 0:00:38]} 7. d3 {[%emt 0:03:36]} Nf6 {[%emt 0:03:22]} 8. Bg5 {[%emt 0:04:07]} h6 {[%emt 0:01:30]} 9. Bxf6 {[%emt 0:05:19]} Qxf6 {[%emt 0:03:37]} 10. Nbd2 {[%emt 0:03:04]} g5 {[%emt 0:02:21]} 11. g4 {[%emt 0:09:45]} Bg6 {[%emt 0:02:33]} 12. b4 {[%emt 0:03:38]} Bb6 {[%emt 0:00:20]} 13. a4 {[%emt 0:02:37]} a5 {[%emt 0:01:22]} 14. b5 {[%emt 0:04:29]} Ne7 {[%emt 0:08:25]} 15. Bb3 {[%emt 0:04:20]} h5 {[%emt 0:04:33]} 16. Nh2 {[%emt 0:11:36]} Qf4 {[%emt 0:06:13]} 17. Kg2 {[%emt 0:03:23]} hxg4 {[%emt 0:03:38]} 18. Nxg4 {[%emt 0:01:57]} Bh5 {[%emt 0:13:19]} 19. Nc4 {[%emt 0:05:13]} Ng6 {[%emt 0:00:36]} 20. Nxb6 {[%emt 0:01:43]} Nh4+ {[%emt 0:01:00]} 21. Kh1 {[%emt 0:02:28]} cxb6 {[%emt 0:02:20]} 22. Rg1 {[%emt 0:02:26]} Nf3 {[%emt 0:01:44]} 23. Qc1 {[%emt 0:00:58]} Bxg4 {[%emt 0:00:56]} 24. Qxf4 {[%emt 0:00:37]} Rxh3+ {[%emt 0:00:11]} 25. Kg2 {[%emt 0:00:06]} gxf4 {[%emt 0:00:11]} 26. Rh1 {[%emt 0:00:57]} Nh4+ {[%emt 0:00:26]} 0-1

[Event "III Menorca Open-A 2024"]
[Site "Ciutadella Menorca"]
[Date "2024.04.03"]
[Round "3.1"]
[White "Nihal Sarin"]
[Black "Cuenca Jimenez, Jose Fernando"]
[Result "1/2-1/2"]
[ECO "D05"]
[WhiteElo "2698"]
[BlackElo "2500"]
[Annotator "TA"]
[PlyCount "92"]
[EventDate "2024.04.02"]
[EventType "swiss"]
[EventCountry "ESP"]
[SourceTitle "playchess.com"]
[Source "ChessBase"]
[SourceQuality "1"]
[TimeControl "5400+30"]

{[%evp 9,92,0,0,0,0,0,0,0,0,0,0,-14,0,0,0,0,0,0,0,0,0,0,0,0,0,0,1,0,0,0,0,0,0,-8,-9,-4,0,0,0,-7,-9,-9,-2,-31,-18,-19,-26,-27,0,0,12,0,18,0,0,0,0,0,0,0,0,0,0,0,0,0,0,0,0,0,0,0,0,0,0,0,0,0,0,0,0,0,0,0,0]} 1. d4 {[%emt 0:03:40]} d5 {[%emt 0:00:29]} 2. Nf3 {[%emt 0:01:11]} Nf6 {[%emt 0:00:29]} 3. e3 {[%emt 0:00:40]} e6 {[%emt 0:01:41]} 4. Bd3 {[%emt 0:02:26]} c5 {[%emt 0:00:14]} 5. O-O {[%emt 0:01:23]} c4 {[%emt 0:00:26]} 6. Be2 {[%emt 0:00:05]} b5 {[%emt 0:00:41]} 7. b3 {[%emt 0:07:31]} Bb7 {[%emt 0:02:20]} 8. a4 {[%emt 0:00:12]} a6 {[%emt 0:00:31]} 9. c3 {[%emt 0:00:37]} Nbd7 {[%emt 0:06:15]} 10. Qc2 {[%emt 0:05:30]} Be7 {[%emt 0:04:07]} 11. Ba3 {[%emt 0:00:07]} O-O {[%emt 0:01:54]} 12. Nbd2 {[%emt 0:03:43]} Bxa3 {[%emt 0:01:47]} 13. Rxa3 {[%emt 0:01:21]} Qc7 {[%emt 0:00:31]} 14. Qb2 {[%emt 0:03:38]} Bc6 {[%emt 0:06:28]} 15. Rfa1 {[%emt 0:02:00]} Rfb8 {[%emt 0:03:37]} 16. axb5 {[%emt 0:06:14]} axb5 {[%emt 0:00:17]} 17. Rxa8 {[%emt 0:00:39]} Rxa8 {[%emt 0:05:35]} 18. Rxa8+ {[%emt 0:00:13]} Bxa8 {[%emt 0:00:07]} 19. Qa3 {[%emt 0:00:06]} Bc6 {[%emt 0:02:05]} 20. h3 {[%emt 0:00:51]} Qb8 {[%emt 0:03:03]} 21. g4 {[%emt 0:04:58]} Qf8 {[%emt 0:03:18]} 22. Qb2 {[%emt 0:16:19]} Qb8 {[%emt 0:06:23]} 23. Bd1 {[%emt 0:02:56]} h6 {[%emt 0:12:52]} 24. Bc2 {[%emt 0:02:17]} Qa7 {[%emt 0:02:18]} 25. Kg2 {[%emt 0:03:44]} Qa5 {[%emt 0:04:09]} 26. b4 {[%emt 0:01:13]} Qa7 {[%emt 0:00:54]} 27. Kf1 {[%emt 0:00:28]} Ne4 {[%emt 0:01:38]} 28. Ke1 {[%emt 0:03:18]} Nxd2 {[%emt 0:06:19]} 29. Kxd2 {[%emt 0:00:25] The position is equal.} Qb8 {[%emt 0:07:42]} 30. Qb1 {[%emt 0:09:31]} Qa8 {[%emt 0:01:13]} 31. h4 {[%emt 0:13:23]} Nf6 {[%emt 0:04:20]} 32. Ne5 {[%emt 0:00:13]} Ne4+ {[%emt 0:00:32]} 33. Bxe4 {[%emt 0:00:13]} dxe4 {[%emt 0:00:01]} 34. Nxc6 {[%emt 0:01:00]} Qxc6 $11 {[%emt 0:00:05][%mdl 4096] Endgame. KQ-KQ} 35. Qa2 {[%emt 0:00:03]} Qb7 {[%emt 0:05:52]} 36. Qa5 {[%emt 0:00:40]} Kh7 {[%emt 0:00:16]} 37. Ke1 {[%emt 0:01:47]} h5 {[%emt 0:01:37]} 38. gxh5 {[%emt 0:01:06]} Qd5 {[%emt 0:00:03]} 39. Qc7 {[%emt 0:00:40]} Qxh5 {[%emt 0:01:24]} 40. Qf4 {[%emt 0:00:30]} f5 {[%emt 0:04:51]} 41. Kf1 {[%emt 0:03:14]} Qg4 {[%emt 0:00:15]} 42. Qxg4 {[%emt 0:00:34]} fxg4 {[%emt 0:00:01]} 43. Kg2 {[%emt 0:00:10] [#] Black must now prevent Kg3.} Kg6 {[%emt 0:00:08]} 44. Kg3 {[%emt 0:00:10]} Kf5 {[%emt 0:00:16]} ({Don't go for} 44... Kh5 $2 45. Kf4 Kxh4 46. Kxe4 $18) (44... Kh5 $5) 45. Kg2 {[%emt 0:00:05] Threatens to win with Kg3.} Kg6 {[%emt 0:00:27]} ({Inferior is} 45... e5 46. d5 Kg6 47. Kg3 Kf7 48. Kxg4 Kg6 49. h5+ Kf6 50. d6) 46. Kg3 {[%emt 0:00:27]} Kf5 {[%emt 0:00:04] An uneventful encounter.   Weighted Error Value: White=0.02 (flawless) /Black=0.02 (flawless) .  Inaccurate:     	White=1     	Black=1      OK:         	White=20    	Black=25     Best:        	White=1     	---} (46... Kh5 47. Kf4 Kxh4 48. Kxe4 $16) (46... Kh5 $5) 1/2-1/2

[Event "III Menorca Open-A 2024"]
[Site "Ciutadella Menorca"]
[Date "2024.04.03"]
[Round "3.2"]
[White "Van Foreest, Jorden"]
[Black "Lamard, Guillaume"]
[Result "1/2-1/2"]
[ECO "D35"]
[WhiteElo "2672"]
[BlackElo "2495"]
[Annotator "TA"]
[PlyCount "122"]
[EventDate "2024.04.02"]
[EventType "swiss"]
[EventCountry "ESP"]
[SourceTitle "playchess.com"]
[Source "ChessBase"]
[SourceQuality "1"]
[TimeControl "5400+30"]

{[%evp 49,122,-60,-46,-98,-78,-94,0,-65,-27,-39,-35,-79,-35,-33,-26,-25,-37,-31,-29,-53,-60,-83,-97,-93,-71,-110,-105,-60,0,0,0,0,0,0,0,0,0,0,296,298,548,744,752,740,689,673,546,524,427,150,161,151,116,136,132,139,146,0,0,0,232,8,8,-8,-8,-8,-8,-8,-8,-8,-8,-10,-8,-8,0]} 1. c4 {[%emt 0:01:48]} e6 {[%emt 0:01:13]} 2. Nc3 {[%emt 0:01:12]} d5 {[%emt 0:00:20]} 3. d4 {[%emt 0:00:16]} Nf6 {[%emt 0:00:23]} 4. cxd5 {[%emt 0:00:40]} exd5 {[%emt 0:00:04]} 5. Bg5 {[%emt 0:00:12]} Be7 {[%emt 0:00:26]} 6. e3 {[%emt 0:00:37]} O-O {[%emt 0:01:27]} 7. Bd3 {[%emt 0:00:35]} Re8 {[%emt 0:02:56]} 8. Nge2 {[%emt 0:05:11] 8.Nf3 is setting a new trend.} c6 {[%emt 0:02:33]} 9. O-O {[%emt 0:03:17]} Nbd7 {[%emt 0:00:18]} 10. a4 {[%emt 0:01:17] D35: Queen's Gambit Declined: Exchange Variation.} h6 {[%emt 0:08:02]} 11. Bh4 {[%emt 0:00:48]} Ne4 {[%emt 0:01:28]} 12. Bxe7 {[%emt 0:01:39]} Qxe7 {[%emt 0:00:36]} 13. a5 {[%emt 0:08:58]} Ndf6 {[%emt 0:02:18]} 14. Qc2 {[%emt 0:00:07]} Bf5 $146 {[%emt 0:13:16]} ({Predecessor:} 14... a6 15. h3 Bf5 16. Nd1 Bh7 17. Nf4 Rac8 18. Re1 c5 19. dxc5 Rxc5 20. Qa4 Rec8 {½-½ Maghsoodloo,P (2707)-Flores,D (2534) Julius Baer Rapid Div 3 W 2023 (1.2)}) 15. Nf4 {[%emt 0:05:27]} Bh7 {[%emt 0:04:03]} 16. Rfe1 {[%emt 0:12:53]} a6 {[%emt 0:10:19]} 17. f3 {[%emt 0:02:03]} Nd6 {[%emt 0:01:36]} 18. Bxh7+ {[%emt 0:00:33]} Nxh7 {[%emt 0:00:04]} 19. Nd3 {[%emt 0:01:31]} Nf6 {[%emt 0:02:39]} 20. Qf2 {[%emt 0:04:10]} Qc7 {[%emt 0:03:29]} 21. b3 {[%emt 0:07:56]} Re7 {[%emt 0:00:08]} 22. g4 {[%emt 0:04:15]} Rae8 {[%emt 0:00:05]} 23. Kh1 {[%emt 0:01:59]} Nd7 {[%emt 0:08:02]} 24. Re2 {[%emt 0:03:46]} Nf8 {[%emt 0:01:14]} 25. Nf4 {[%emt 0:03:48]} Qd8 {[%emt 0:01:29]} (25... f5 {with more complications.} 26. gxf5 Nxf5 27. Nfxd5 cxd5 28. Nxd5 Qd8) 26. h3 {[%emt 0:04:21]} (26. b4 $15) 26... Ne6 {[%emt 0:02:53]} 27. Nd3 {[%emt 0:00:04]} Nf8 {[%emt 0:00:10]} ({Black should play} 27... Ng5 $17 28. Kg2 f6) 28. Kg2 {[%emt 0:00:05]} ({White should try} 28. Nf4 $1 $11) 28... Ng6 {[%emt 0:00:45]} 29. Kg1 {[%emt 0:08:17]} f5 {[%emt 0:03:23]} 30. b4 {[%emt 0:00:04]} Rf7 {[%emt 0:01:01]} 31. Qg3 {[%emt 0:01:30]} Nc4 {[%emt 0:01:38]} 32. f4 {[%emt 0:01:16]} Qh4 {[%emt 0:07:24]} 33. Qxh4 {[%emt 0:01:11]} Nxh4 {[%emt 0:00:03]} 34. Ne5 {[%emt 0:01:12]} Nxe5 $1 {[%emt 0:00:07]} 35. fxe5 {[%emt 0:03:38]} fxg4 {[%emt 0:05:20]} 36. hxg4 {[%emt 0:00:05]} Ref8 {[%emt 0:00:26]} 37. Na4 {[%emt 0:01:18]} Rf3 {[%emt 0:00:33]} 38. Kh2 {[%emt 0:00:09]} g5 {[%emt 0:01:35]} (38... h5 $1 $15 39. gxh5 R3f5) 39. Nc5 $11 {[%emt 0:00:55]} Rf2+ {[%emt 0:00:49]} 40. Rxf2 {[%emt 0:00:05]} Rxf2+ {[%emt 0:00:03]} 41. Kg1 {[%emt 0:00:49]} Rg2+ {[%emt 0:00:36]} 42. Kf1 {[%emt 0:00:11]} Rd2 {[%emt 0:02:11]} 43. Re1 {[%emt 0:02:19]} Nf3 $2 {[%emt 0:01:59][%mdl 8192]} (43... Rh2 $11) 44. Re2 $18 {[%emt 0:00:07]} Nh2+ $2 {[%emt 0:00:04]} (44... Rd1+ 45. Kf2 Nh4 46. Nxb7 Rh1) 45. Ke1 $18 {[%emt 0:00:05]} Rxe2+ {[%emt 0:00:11]} 46. Kxe2 {[%emt 0:00:04]} Nxg4 {[%emt 0:00:02]} 47. Nxb7 {[%emt 0:00:17]} h5 {[%emt 0:00:09]} 48. Nd8 {[%emt 0:04:49]} h4 {[%emt 0:00:37]} 49. Nxc6 $2 {[%emt 0:00:16]} (49. Kf3 $1 $18 {[%cal Rf3g4] is the precise move to win.} Nh2+ 50. Kg2) 49... h3 $16 {[%emt 0:00:48] [#]} 50. Ne7+ $1 {[%emt 0:00:30]} ({Not} 50. Kf3 Nxe3 (50... h2 $2 51. Kg2 $18) 51. Kg3 (51. Kxe3 $2 {is the wrong capture.} h2 $19) 51... g4 $11) 50... Kf7 {[%emt 0:01:27]} 51. Nf5 {[%emt 0:00:04]} Ke6 {[%emt 0:00:09]} 52. Ng3 {[%emt 0:00:43]} Kd7 {[%emt 0:00:12]} 53. Kf3 {[%emt 0:01:09]} ({Better is} 53. Nf1 $16) 53... Nh2+ $11 {[%emt 0:00:05]} 54. Ke2 $2 {[%emt 0:00:28]} (54. Kf2 $11 Ng4+ 55. Kf3 Nh2+ 56. Ke2) 54... Ng4 $1 $18 {[%emt 0:00:09] [#]} 55. e4 $2 {[%emt 0:01:12]} (55. Nf1 $1 $18) 55... dxe4 $11 {[%emt 0:00:47]} 56. Nxe4 {[%emt 0:01:39]} h2 {[%emt 0:00:31]} 57. Ng3 $1 {[%emt 0:00:02]} Nh6 $1 {[%emt 0:00:24]} 58. Kf2 {[%emt 0:03:35]} Nf5 $1 {[%emt 0:00:20]} 59. Nh1 $1 {[%emt 0:00:03]} Nxd4 {[%emt 0:00:42]} 60. Kg2 {[%emt 0:00:03]} Ke6 {[%emt 0:01:28]} 61. Nf2 {[%emt 0:00:14]} Kxe5 {[%emt 0:02:25]} 1/2-1/2

[Event "III Menorca Open-A 2024"]
[Site "Ciutadella Menorca"]
[Date "2024.04.03"]
[Round "3.3"]
[White "Alekseenko, Kirill"]
[Black "Szpar, Milosz"]
[Result "1-0"]
[ECO "C02"]
[WhiteElo "2650"]
[BlackElo "2495"]
[Annotator "TA"]
[PlyCount "121"]
[EventDate "2024.04.02"]
[EventType "swiss"]
[EventCountry "ESP"]
[SourceTitle "playchess.com"]
[Source "ChessBase"]
[SourceQuality "1"]
[TimeControl "5400+30"]

{[%evp 24,121,28,26,76,76,77,75,80,77,90,82,92,88,112,113,132,132,132,139,161,155,172,172,172,181,151,154,191,191,203,147,133,135,141,149,149,149,98,91,260,111,131,181,236,229,276,88,85,0,0,0,225,213,197,197,224,143,3742,2753,29966,29967,29967,29968,29968,29969,29970,29969,29971,29972,29972,29973,29973,29973,29973,29975,29975,29975,29975,29976,29976,29977,29977,29978,29978,29979,29979,29980,29980,29981,29981,29982,29983,29984,29984,29985,29985,29985,29988,29989]} 1. e4 {[%emt 0:00:33]} e6 {[%emt 0:01:56]} 2. d4 {[%emt 0:00:42]} d5 {[%emt 0:00:05]} 3. e5 {[%emt 0:00:38]} c5 {[%emt 0:00:06]} 4. c3 {[%emt 0:00:25]} Nc6 {[%emt 0:00:24]} 5. Nf3 {[%emt 0:00:24]} Bd7 {[%emt 0:00:35]} 6. Be2 {[%emt 0:00:55]} Nge7 {[%emt 0:00:40]} 7. O-O {[%emt 0:00:26]} cxd4 {[%emt 0:08:01]} 8. cxd4 {[%emt 0:00:09]} Nf5 {[%emt 0:00:05]} 9. Nc3 {[%emt 0:00:50]} a6 {[%emt 0:00:31] C02: French: Advance Variation.} 10. Kh1 {[%emt 0:02:06]} Rc8 {[%emt 0:08:52]} 11. h3 $5 {[%emt 0:00:06][%mdl 4] 11.a3 is a critical line. A promising side line.} h5 $146 {[%emt 0:06:40]} ({Predecessor:} 11... h6 12. Rb1 b5 13. Ra1 Bb4 14. Bd3 Nh4 15. Be3 Nxf3 16. Qxf3 Bxc3 17. bxc3 O-O {0-1 Esipenko,A (2704)-Kramnik,V (2753) Rostov on Don Rapid m 2024 (2)}) 12. Be3 {[%emt 0:15:00]} Be7 {[%emt 0:09:27]} 13. Bd3 {[%emt 0:02:30]} g6 {[%emt 0:00:55]} (13... Nxe3 $11 14. fxe3 O-O) 14. Bxf5 $1 $16 {[%emt 0:05:05]} gxf5 {[%emt 0:01:22]} 15. Rc1 {[%emt 0:00:27]} Na5 {[%emt 0:04:35]} 16. b3 {[%emt 0:00:59]} h4 {[%emt 0:05:12]} 17. Qd2 {[%emt 0:03:07]} Nc6 {[%emt 0:12:31]} 18. Na4 {[%emt 0:02:39]} b6 {[%emt 0:13:24]} 19. Bg5 {[%emt 0:03:38]} Rb8 {[%emt 0:04:07]} 20. Bxe7 {[%emt 0:03:19]} Nxe7 {[%emt 0:01:47]} 21. Nb2 {[%emt 0:00:04]} Ng6 {[%emt 0:01:21]} 22. Rc3 {[%emt 0:00:32]} Kf8 {[%emt 0:08:42]} 23. Rfc1 {[%emt 0:00:27]} Kg7 {[%emt 0:00:07]} 24. Nd3 {[%emt 0:01:21]} Rb7 {[%emt 0:00:39]} 25. R1c2 {[%emt 0:04:01]} a5 {[%emt 0:00:39]} 26. Qc1 {[%emt 0:00:37]} a4 {[%emt 0:03:36]} 27. Rc7 {[%emt 0:01:47]} Rxc7 {[%emt 0:00:15]} 28. Rxc7 {[%emt 0:00:06]} axb3 {[%emt 0:00:11]} 29. axb3 {[%emt 0:00:04]} Rh5 {[%emt 0:01:05]} 30. Rb7 {[%emt 0:09:54]} Bb5 {[%emt 0:01:02]} 31. Nb4 {[%emt 0:00:23]} (31. Nf4 $6 Nxf4 32. Qxf4 Be2 $18) 31... f4 $2 {[%emt 0:02:39]} (31... Be2 $16) 32. Nc6 {[%emt 0:02:12]} (32. Qa1 $18 {is more deadly.}) 32... Qc8 {[%emt 0:01:57]} 33. Rxb6 {[%emt 0:00:37]} Bd3 {[%emt 0:00:43]} (33... Be2 $142 34. b4 Qa8) 34. Rb8 {[%emt 0:04:53]} Qa6 {[%emt 0:01:34]} 35. Nb4 $2 {[%emt 0:23:55]} (35. Nd8 $18 Be4 36. Nxf7 (36. Rb7 Rf5 $18) 36... Bxf3 37. Nd8) 35... Qa7 $16 {[%emt 0:00:02] [#]} 36. Nxd3 {[%emt 0:00:41]} (36. Rc8 $1 $16 Be4 37. Rc7) 36... Qxb8 $11 {[%emt 0:00:04]} 37. Nxf4 {[%emt 0:00:05]} Rf5 $2 {[%emt 0:01:32]} (37... Nxf4 $11 38. Qxf4 Qxb3) 38. Nxg6 $18 {[%emt 0:00:26]} fxg6 {[%emt 0:00:37] [#]} 39. Ng5 $1 {[%emt 0:01:48]} ({Worse is} 39. Nxh4 Rxf2 40. Qg5 Qe8 $11) 39... Qb6 {[%emt 0:00:50]} (39... Rxf2 40. Nxe6+ Kf7 41. Qc6 $16) 40. f4 {[%emt 0:00:03]} Rxg5 $4 {[%emt 0:00:59][%mdl 8192]} (40... Kf8 $16 41. Kh2 (41. Qc8+ Ke7 $16) 41... Ke7) 41. fxg5 $18 {[%emt 0:00:04]} Qxd4 {[%emt 0:00:25]} 42. Qc7+ {[%emt 0:00:05]} Kh8 {[%emt 0:00:30]} 43. Qd8+ {[%emt 0:00:08]} Kh7 {[%emt 0:00:05]} 44. Qe7+ {[%emt 0:00:03]} Kh8 {[%emt 0:00:20]} 45. Qf8+ {[%emt 0:00:03]} Kh7 {[%emt 0:00:17]} 46. Qh6+ {[%emt 0:00:04]} Kg8 {[%emt 0:00:05]} 47. Qxg6+ {[%emt 0:00:04]} Kh8 {[%emt 0:00:32]} 48. Qh6+ {[%emt 0:00:06]} Kg8 {[%emt 0:00:04]} 49. Qxe6+ {[%emt 0:00:03]} Kh7 {[%emt 0:00:35]} 50. Qf7+ {[%emt 0:00:34]} Kh8 {[%emt 0:00:04]} 51. Qf6+ {[%emt 0:00:21]} Kh7 {[%emt 0:00:50]} 52. g6+ {[%emt 0:02:07]} Kh6 {[%emt 0:00:05]} 53. g7+ {[%emt 0:00:10]} Kh7 {[%emt 0:00:07]} 54. Qf5+ {[%emt 0:00:28]} Kxg7 {[%emt 0:00:32]} 55. Qg4+ {[%emt 0:00:03]} Qxg4 {[%emt 0:00:08]} 56. hxg4 {[%emt 0:00:03]} Kf7 {[%emt 0:00:06]} 57. g5 {[%emt 0:00:24]} Ke6 {[%emt 0:00:21]} 58. g6 {[%emt 0:00:05]} d4 {[%emt 0:00:06]} 59. Kg1 {[%emt 0:00:03]} d3 {[%emt 0:00:10]} 60. Kf2 {[%emt 0:00:08]} Kd5 {[%emt 0:00:06]} 61. g7 {[%emt 0:00:07]} 1-0

[Event "III Menorca Open-A 2024"]
[Site "Ciutadella Menorca"]
[Date "2024.04.03"]
[Round "3.4"]
[White "Nogerbek, Kazybek"]
[Black "Pichot, Alan"]
[Result "1/2-1/2"]
[ECO "D02"]
[WhiteElo "2489"]
[BlackElo "2644"]
[Annotator "TA"]
[PlyCount "93"]
[EventDate "2024.04.02"]
[EventType "swiss"]
[EventCountry "ESP"]
[SourceTitle "playchess.com"]
[Source "ChessBase"]
[SourceQuality "1"]
[TimeControl "5400+30"]

{[%evp 10,93,28,23,28,27,20,11,17,16,13,17,27,-1,0,0,0,-8,0,-24,-16,-29,-27,-39,-31,-35,-31,-51,-68,-28,-6,-62,-58,-52,-37,-91,-26,-40,0,0,0,0,0,0,0,0,0,0,0,0,0,0,0,0,0,0,0,0,0,-4,-2,-8,0,0,0,0,0,-8,0,-4,-2,-4,-4,-10,0,-4,0,0,0,0,0,-17,0,0,0,-17]} 1. d4 {[%emt 0:00:05]} Nf6 {[%emt 0:06:45]} 2. c4 {[%emt 0:00:28]} e6 {[%emt 0:00:14]} 3. Nf3 {[%emt 0:00:20]} d5 {[%emt 0:00:19]} 4. g3 {[%emt 0:00:16]} Bd6 {[%emt 0:04:18]} 5. Bg2 {[%emt 0:01:36]} O-O {[%emt 0:00:11]} 6. O-O {[%emt 0:00:32]} Nbd7 {[%emt 0:00:21][%cal Bb8d7,Bd7c5,Bc5e4][%mdl 32]} 7. Nfd2 {[%emt 0:04:06]} c5 {[%emt 0:08:38]} 8. cxd5 {[%emt 0:02:18]} exd5 {[%emt 0:00:12]} 9. Nc3 {[%emt 0:05:34]} cxd4 {[%emt 0:02:17]} 10. Nb5 {[%emt 0:02:28]} Nc5 {[%emt 0:01:41]} 11. Nxd4 {[%emt 0:05:46]} Re8 {[%emt 0:02:13]} 12. b3 {[%emt 0:05:03]} Qb6 {[%emt 0:02:11]} 13. N2f3 {[%emt 0:19:37]} Bd7 {[%emt 0:20:25]} 14. Nc2 {[%emt 0:04:09][%cal Bd4c2,Bc2e3,Be3d5][%mdl 32]} Nce4 {[%emt 0:04:26]} 15. Bb2 {[%emt 0:02:33] Prevents Nc3.} Rac8 {[%emt 0:00:55]} 16. Bd4 {[%emt 0:01:35]} Qa6 {[%emt 0:01:28]} 17. Bxf6 {[%emt 0:09:38]} Nxf6 {[%emt 0:04:20]} 18. Nfd4 {[%emt 0:03:18]} h5 {[%emt 0:07:26]} 19. Ne3 {[%emt 0:01:46]} Qa5 {[%emt 0:01:29]} 20. a3 {[%emt 0:02:58]} Be5 $1 $15 {[%emt 0:06:24] A strong pair of Bishops.} (20... Bxa3 $2 {loses.} 21. Nec2 $18) 21. Qd3 {[%emt 0:04:31]} Ne4 {[%emt 0:04:35] Threatens to win with ...Rc3.} 22. b4 {[%emt 0:05:59] [#]} (22. Rad1 $1 $15) 22... Qb6 {[%emt 0:00:57]} (22... Qa6 $1 $17 {[%cal Ra6d3] Hoping for ...Qxd3.} 23. Bxe4 dxe4 24. Qxa6 bxa6) 23. Rad1 $11 {[%emt 0:00:30]} Rc3 {[%emt 0:03:14]} 24. Nxd5 $1 {[%emt 0:01:30] The position is equal.} Rxd3 {[%emt 0:00:09]} 25. Nxb6 {[%emt 0:00:05]} Rxd1 {[%emt 0:00:28]} 26. Rxd1 {[%emt 0:00:42]} Nc3 {[%emt 0:03:30]} 27. Nxd7 {[%emt 0:02:16]} Nxd1 {[%emt 0:00:05]} 28. Nxe5 {[%emt 0:00:16]} Rxe5 {[%emt 0:00:06]} 29. Bxb7 {[%emt 0:00:06][%mdl 4096] Endgame. KRN-KBN} Nc3 {[%emt 0:00:12]} 30. e3 {[%emt 0:02:10]} a5 {[%emt 0:09:06]} 31. Bc6 {[%emt 0:01:59]} axb4 {[%emt 0:01:27]} 32. axb4 {[%emt 0:00:08]} Kf8 {[%emt 0:00:42]} 33. Kf1 {[%emt 0:01:45]} Nd5 {[%emt 0:01:52]} 34. Bxd5 {[%emt 0:01:49]} (34. Nf3 $5 Rf5 $8 35. Nd4 Nxb4 36. Nxf5 Nxc6 37. Ke2 $16) 34... Rxd5 {[%emt 0:00:07] KR-KN} 35. Ke2 {[%emt 0:00:07]} Ke7 {[%emt 0:00:58]} 36. h3 {[%emt 0:02:12]} Rd7 {[%emt 0:00:44]} 37. Kd3 {[%emt 0:01:16]} Kd6 {[%emt 0:00:25]} 38. Ke4 {[%emt 0:01:09]} g6 {[%emt 0:02:20] Prevents Nf5+.} 39. g4 {[%emt 0:00:25]} hxg4 {[%emt 0:00:28]} 40. hxg4 {[%emt 0:00:02]} Rb7 {[%emt 0:01:02]} 41. b5 {[%emt 0:00:08]} Ra7 {[%emt 0:00:16]} 42. g5 {[%emt 0:01:44]} Ra2 {[%emt 0:00:45]} 43. f4 {[%emt 0:00:35]} Ra3 {[%emt 0:00:29]} 44. Nc6 {[%emt 0:04:01]} Rb3 {[%emt 0:00:36]} 45. Nd8 {[%emt 0:01:23]} Ke7 {[%emt 0:00:26][%mdl 1024] Black has compensation.} 46. Nc6+ {[%emt 0:00:06]} Kd6 {[%emt 0:00:06]} 47. Nd8 {[%emt 0:03:00] Weighted Error Value: White=0.09 (flawless) /Black=0.07 (flawless) .  Mistake:       	White=2     	Black=1      Inaccurate:     	White=1     	Black=1      OK:         	White=12    	Black=16     Best:        	White=3     	Black=3      Strong:       	White=1     	Black=1} 1/2-1/2